[Event "*** MasterClass Titled Tuesday Blitz"]
[Site "Chess.com"]
[Date "2017.11.07"]
[Round "3"]
[White "Mistheoretical"]
[Black "Too_Stupid_To_Play"]
[Result "0-1"]
[WhiteElo "2293"]
[BlackElo "2215"]
[TimeControl "180+2"]
[EndTime "14:45:52 PST"]
[Termination "Too_Stupid_To_Play won by checkmate"]

1. d4 {[%clk 0:03:01.9]} 1... Nf6 {[%clk 0:03:00.9]} 2. Bg5 {[%clk 0:03:02.6]}
2... d5 {[%clk 0:03:01]} 3. Bxf6 {[%clk 0:03:03.4]} 3... exf6 {[%clk 0:03:02.9]}
4. e3 {[%clk 0:03:05.2]} 4... Bd6 {[%clk 0:03:03.5]} 5. c4 {[%clk 0:03:06.2]}
5... c6 {[%clk 0:03:04]} 6. cxd5 {[%clk 0:03:06.8]} 6... cxd5 {[%clk 0:03:05.9]}
7. Nc3 {[%clk 0:03:08.1]} 7... Be6 {[%clk 0:03:05.9]} 8. g3 {[%clk 0:03:07.6]}
8... O-O {[%clk 0:03:05.2]} 9. Bg2 {[%clk 0:03:09.1]} 9... Be7 {[%clk
0:02:47.7]} 10. Qf3 {[%clk 0:02:41.1]} 10... Qa5 {[%clk 0:02:26.2]} 11. Ne2
{[%clk 0:02:35.2]} 11... Rd8 {[%clk 0:02:21.3]} 12. O-O {[%clk 0:02:35.4]} 12...
Na6 {[%clk 0:02:22.7]} 13. a3 {[%clk 0:02:34.6]} 13... Rac8 {[%clk 0:02:19.2]}
14. Nf4 {[%clk 0:02:29.3]} 14... Nc7 {[%clk 0:02:05.1]} 15. Rfc1 {[%clk
0:02:24.9]} 15... b5 {[%clk 0:01:55.8]} 16. b4 {[%clk 0:02:07.5]} 16... Qa6
{[%clk 0:01:48.9]} 17. Qe2 {[%clk 0:01:49.8]} 17... Qb7 {[%clk 0:01:42.8]} 18.
Qa2 {[%clk 0:01:31.9]} 18... g5 {[%clk 0:01:27.7]} 19. Nd3 {[%clk 0:01:29.9]}
19... Bf5 {[%clk 0:01:24]} 20. Qe2 {[%clk 0:00:57.1]} 20... Ne6 {[%clk
0:00:59.8]} 21. Ra2 {[%clk 0:00:22.4]} 21... Rc4 {[%clk 0:00:46.9]} 22. Nc5
{[%clk 0:00:15.3]} 22... Nxc5 {[%clk 0:00:11.8]} 23. bxc5 {[%clk 0:00:17.2]}
23... Be6 {[%clk 0:00:08.3]} 24. Qb2 {[%clk 0:00:17.1]} 24... a6 {[%clk
0:00:09.5]} 25. Bf1 {[%clk 0:00:15.2]} 25... Qc6 {[%clk 0:00:06.9]} 26. a4
{[%clk 0:00:09.3]} 26... b4 {[%clk 0:00:04.7]} 27. Ne2 {[%clk 0:00:07]} 27... a5
{[%clk 0:00:04.9]} 28. Rd1 {[%clk 0:00:06]} 28... h5 {[%clk 0:00:05.8]} 29. Nc1
{[%clk 0:00:05.6]} 29... h4 {[%clk 0:00:07]} 30. Nb3 {[%clk 0:00:06.4]} 30...
hxg3 {[%clk 0:00:07.1]} 31. hxg3 {[%clk 0:00:07.8]} 31... Ra8 {[%clk 0:00:05.4]}
32. Nd2 {[%clk 0:00:07.6]} 32... Bd8 {[%clk 0:00:05.9]} 33. Bg2 {[%clk
0:00:08.7]} 33... Qa6 {[%clk 0:00:04.6]} 34. Nxc4 {[%clk 0:00:09.2]} 34... Qxc4
{[%clk 0:00:06.5]} 35. Raa1 {[%clk 0:00:09.7]} 35... Qa6 {[%clk 0:00:07.8]} 36.
Rdc1 {[%clk 0:00:10.1]} 36... Bc7 {[%clk 0:00:09.7]} 37. Qb3 {[%clk 0:00:09.9]}
37... Qc6 {[%clk 0:00:08.2]} 38. Rc2 {[%clk 0:00:10.8]} 38... Kg7 {[%clk
0:00:09.4]} 39. Rac1 {[%clk 0:00:11.8]} 39... Rh8 {[%clk 0:00:10.8]} 40. f4
{[%clk 0:00:11.7]} 40... gxf4 {[%clk 0:00:07]} 41. gxf4 {[%clk 0:00:13.6]} 41...
Kf8 {[%clk 0:00:07]} 42. Kf2 {[%clk 0:00:14.7]} 42... Ke7 {[%clk 0:00:08.4]} 43.
Ra1 {[%clk 0:00:14.1]} 43... Rg8 {[%clk 0:00:08.5]} 44. Qd3 {[%clk 0:00:14.6]}
44... Qd7 {[%clk 0:00:07]} 45. Qb5 {[%clk 0:00:14]} 45... Qc8 {[%clk 0:00:07.9]}
46. Qc6 {[%clk 0:00:14.2]} 46... Bf5 {[%clk 0:00:06.3]} 47. Rcc1 {[%clk
0:00:12.3]} 47... Rxg2+ {[%clk 0:00:04.6]} 48. Kxg2 {[%clk 0:00:13.1]} 48...
Be4+ {[%clk 0:00:06.5]} 49. Kg3 {[%clk 0:00:13.4]} 49... Bxf4+ {[%clk
0:00:07.2]} 50. exf4 {[%clk 0:00:13.6]} 50... Qxc6 {[%clk 0:00:09.1]} 51. Re1
{[%clk 0:00:13]} 51... f5 {[%clk 0:00:08.4]} 52. Re2 {[%clk 0:00:13.2]} 52...
Qf6 {[%clk 0:00:08.7]} 53. Rh2 {[%clk 0:00:12.2]} 53... Qxd4 {[%clk 0:00:09.5]}
54. Rh6 {[%clk 0:00:11.9]} 54... Qxa1 {[%clk 0:00:09.6]} 55. c6 {[%clk
0:00:13.8]} 55... Qc3+ {[%clk 0:00:09.2]} 56. Kh4 {[%clk 0:00:14.8]} 56... b3
{[%clk 0:00:10.7]} 57. c7 {[%clk 0:00:14.7]} 57... Qxc7 {[%clk 0:00:11.2]} 58.
Kg5 {[%clk 0:00:16.3]} 58... b2 {[%clk 0:00:11.2]} 59. Ra6 {[%clk 0:00:16.8]}
59... b1=Q {[%clk 0:00:11.1]} 60. Kh6 {[%clk 0:00:18.3]} 60... Qh1+ {[%clk
0:00:10.8]} 61. Kg7 {[%clk 0:00:19.5]} 61... Qg2+ {[%clk 0:00:11.3]} 62. Kh8
{[%clk 0:00:20.5]} 62... Qc1 {[%clk 0:00:08.1]} 63. Ra7+ {[%clk 0:00:17.3]}
63... Ke6 {[%clk 0:00:08.5]} 64. Ra6+ {[%clk 0:00:18.4]} 64... Kd7 {[%clk
0:00:07.7]} 65. Ra7+ {[%clk 0:00:19.8]} 65... Kd6 {[%clk 0:00:08.4]} 66. Ra6+
{[%clk 0:00:21.1]} 66... Kc5 {[%clk 0:00:09.7]} 67. Ra7 {[%clk 0:00:21.4]} 67...
Qch1# {[%clk 0:00:08.6]} 0-1

[Event "*** MasterClass Titled Tuesday Blitz"]
[Site "Chess.com"]
[Date "2017.11.07"]
[Round "3"]
[White "ZapataCharlesS"]
[Black "FairChess_on_YouTube"]
[Result "0-1"]
[WhiteElo "2523"]
[BlackElo "2773"]
[TimeControl "180+2"]
[EndTime "14:46:12 PST"]
[Termination "FairChess_on_YouTube won by checkmate"]

1. d4 {[%clk 0:02:33.3]} 1... d5 {[%clk 0:02:59.8]} 2. Nf3 {[%clk 0:02:35.2]}
2... Nf6 {[%clk 0:02:59.4]} 3. c4 {[%clk 0:02:34.4]} 3... c6 {[%clk 0:03:00.3]}
4. cxd5 {[%clk 0:02:35.1]} 4... cxd5 {[%clk 0:03:01.2]} 5. Nc3 {[%clk 0:02:37]}
5... Nc6 {[%clk 0:03:01.3]} 6. e3 {[%clk 0:02:37.4]} 6... Bf5 {[%clk 0:02:55.9]}
7. Ne5 {[%clk 0:02:37.6]} 7... Rc8 {[%clk 0:02:50.3]} 8. Bb5 {[%clk 0:02:37.4]}
8... Bd7 {[%clk 0:02:47.1]} 9. O-O {[%clk 0:02:33.6]} 9... e6 {[%clk 0:02:47.7]}
10. f4 {[%clk 0:02:29]} 10... Bb4 {[%clk 0:02:46.6]} 11. Bd3 {[%clk 0:02:22.1]}
11... O-O {[%clk 0:02:46]} 12. Bd2 {[%clk 0:02:09]} 12... Ne7 {[%clk 0:02:46.6]}
13. Be1 {[%clk 0:02:05.6]} 13... Nf5 {[%clk 0:02:45.2]} 14. Bxf5 {[%clk
0:02:01.7]} 14... exf5 {[%clk 0:02:47.1]} 15. Qb3 {[%clk 0:02:02.9]} 15... Bxc3
{[%clk 0:02:46.5]} 16. Bxc3 {[%clk 0:02:00.1]} 16... b6 {[%clk 0:02:41]} 17.
Rfc1 {[%clk 0:01:57.1]} 17... Re8 {[%clk 0:02:35.1]} 18. a4 {[%clk 0:01:41]}
18... Be6 {[%clk 0:02:34.4]} 19. a5 {[%clk 0:01:39.5]} 19... Ne4 {[%clk
0:02:33.8]} 20. axb6 {[%clk 0:01:38.1]} 20... axb6 {[%clk 0:02:31.6]} 21. Bb4
{[%clk 0:01:30.3]} 21... f6 {[%clk 0:02:27.6]} 22. Nd3 {[%clk 0:01:25.4]} 22...
Rc4 {[%clk 0:02:27.9]} 23. Ra7 {[%clk 0:01:18.3]} 23... Bf7 {[%clk 0:02:25.4]}
24. Qa4 {[%clk 0:01:12.1]} 24... Qc8 {[%clk 0:02:18.1]} 25. Rf1 {[%clk
0:01:12.8]} 25... Rc2 {[%clk 0:02:11.3]} 26. Qd7 {[%clk 0:01:06.2]} 26... Qxd7
{[%clk 0:02:10.8]} 27. Rxd7 {[%clk 0:01:08.1]} 27... Bh5 {[%clk 0:02:02.7]} 28.
Rc1 {[%clk 0:00:53]} 28... Rxc1+ {[%clk 0:02:03.1]} 29. Nxc1 {[%clk 0:00:54.9]}
29... Rc8 {[%clk 0:02:03.7]} 30. Nd3 {[%clk 0:00:37.5]} 30... Be2 {[%clk
0:01:48.3]} 31. Ne1 {[%clk 0:00:38]} 31... Bc4 {[%clk 0:01:47.2]} 32. Rb7 {[%clk
0:00:36.6]} 32... b5 {[%clk 0:01:41]} 33. h3 {[%clk 0:00:38.1]} 33... Be2 {[%clk
0:01:35.1]} 34. Kh2 {[%clk 0:00:29.1]} 34... h5 {[%clk 0:01:32.2]} 35. Bc5
{[%clk 0:00:22.3]} 35... Nxc5 {[%clk 0:01:28.4]} 36. dxc5 {[%clk 0:00:24.2]}
36... Rxc5 {[%clk 0:01:29.4]} 37. Kg3 {[%clk 0:00:25.8]} 37... g5 {[%clk
0:00:33.7]} 38. Kf2 {[%clk 0:00:20.1]} 38... Bd1 {[%clk 0:00:32.5]} 39. b4
{[%clk 0:00:15.1]} 39... Rc4 {[%clk 0:00:31.3]} 40. Rxb5 {[%clk 0:00:16.2]}
40... gxf4 {[%clk 0:00:30.9]} 41. Rxd5 {[%clk 0:00:17.6]} 41... fxe3+ {[%clk
0:00:30.7]} 42. Kxe3 {[%clk 0:00:19.5]} 42... Re4+ {[%clk 0:00:30.7]} 43. Kf2
{[%clk 0:00:18.9]} 43... Bb3 {[%clk 0:00:27.3]} 44. Rd8+ {[%clk 0:00:18.4]}
44... Kf7 {[%clk 0:00:27.5]} 45. Nd3 {[%clk 0:00:20.3]} 45... Bc4 {[%clk
0:00:26.5]} 46. Nc5 {[%clk 0:00:20.6]} 46... Re2+ {[%clk 0:00:27.5]} 47. Kf3
{[%clk 0:00:22.2]} 47... Rb2 {[%clk 0:00:27.8]} 48. Rd7+ {[%clk 0:00:23.3]}
48... Kg6 {[%clk 0:00:28.4]} 49. Kg3 {[%clk 0:00:21.6]} 49... Bf1 {[%clk
0:00:26.5]} 50. Ne6 {[%clk 0:00:18.4]} 50... h4+ {[%clk 0:00:17.2]} 51. Kxh4
{[%clk 0:00:15.9]} 51... Rxb4+ {[%clk 0:00:18.2]} 52. Kg3 {[%clk 0:00:17.3]}
52... Rb3+ {[%clk 0:00:18.6]} 53. Kf2 {[%clk 0:00:18.4]} 53... Bc4 {[%clk
0:00:18.1]} 54. Nf8+ {[%clk 0:00:19.7]} 54... Kg5 {[%clk 0:00:19.2]} 55. Rg7+
{[%clk 0:00:19.8]} 55... Kf4 {[%clk 0:00:19.5]} 56. g3+ {[%clk 0:00:19.3]} 56...
Ke4 {[%clk 0:00:18.4]} 57. Re7+ {[%clk 0:00:20.9]} 57... Kd4 {[%clk 0:00:19.7]}
58. Nd7 {[%clk 0:00:19.8]} 58... Rb2+ {[%clk 0:00:19.5]} 59. Kg1 {[%clk
0:00:20.6]} 59... Rb1+ {[%clk 0:00:17.7]} 60. Kf2 {[%clk 0:00:21.2]} 60... Rb2+
{[%clk 0:00:17.1]} 61. Kg1 {[%clk 0:00:22.7]} 61... Rb7 {[%clk 0:00:17.3]} 62.
Rh7 {[%clk 0:00:21.7]} 62... Ke3 {[%clk 0:00:17.4]} 63. Nxf6 {[%clk 0:00:18.5]}
63... Rb1+ {[%clk 0:00:17.9]} 64. Kh2 {[%clk 0:00:20.1]} 64... Kf3 {[%clk
0:00:16]} 65. Rc7 {[%clk 0:00:19.8]} 65... Rb2+ {[%clk 0:00:16.2]} 66. Kh1
{[%clk 0:00:21.4]} 66... Be2 {[%clk 0:00:14.8]} 67. Rc1 {[%clk 0:00:20.4]} 67...
Kxg3 {[%clk 0:00:15]} 68. Nh5+ {[%clk 0:00:21.9]} 68... Bxh5 {[%clk 0:00:15.3]}
69. Rg1+ {[%clk 0:00:22.1]} 69... Kxh3 {[%clk 0:00:14.4]} 70. Rf1 {[%clk
0:00:23.6]} 70... Bg4 {[%clk 0:00:14.3]} 71. Rg1 {[%clk 0:00:23.7]} 71... Rh2#
{[%clk 0:00:13.7]} 0-1

[Event "*** MasterClass Titled Tuesday Blitz"]
[Site "Chess.com"]
[Date "2017.11.07"]
[Round "3"]
[White "VladDobrov"]
[Black "popov_m"]
[Result "0-1"]
[WhiteElo "2655"]
[BlackElo "2504"]
[TimeControl "180+2"]
[EndTime "14:46:38 PST"]
[Termination "popov_m won by resignation"]

1. d4 {[%clk 0:03:01.9]} 1... g6 {[%clk 0:03:00.3]} 2. Nf3 {[%clk 0:02:56]} 2...
Bg7 {[%clk 0:03:01.5]} 3. g3 {[%clk 0:02:57]} 3... d6 {[%clk 0:03:01.8]} 4. Bg2
{[%clk 0:02:57.3]} 4... Nf6 {[%clk 0:03:03.3]} 5. O-O {[%clk 0:02:57.6]} 5...
O-O {[%clk 0:03:04.9]} 6. a4 {[%clk 0:02:58.1]} 6... c5 {[%clk 0:03:01.8]} 7.
Nc3 {[%clk 0:02:52.3]} 7... Na6 {[%clk 0:02:55.5]} 8. e4 {[%clk 0:02:49.4]} 8...
Bg4 {[%clk 0:02:52.2]} 9. Be3 {[%clk 0:02:48.8]} 9... Qc8 {[%clk 0:02:42.1]} 10.
e5 {[%clk 0:02:18.5]} 10... dxe5 {[%clk 0:02:41.3]} 11. dxe5 {[%clk 0:02:19.1]}
11... Nd7 {[%clk 0:02:41.8]} 12. h3 {[%clk 0:02:11.2]} 12... Bf5 {[%clk
0:02:15.3]} 13. Nd5 {[%clk 0:02:11.4]} 13... Re8 {[%clk 0:02:14.2]} 14. Bf4
{[%clk 0:02:06.1]} 14... Nb4 {[%clk 0:01:20.9]} 15. Nxb4 {[%clk 0:01:58.8]}
15... cxb4 {[%clk 0:01:22.8]} 16. Qd2 {[%clk 0:01:50.5]} 16... a5 {[%clk
0:01:07.9]} 17. Rac1 {[%clk 0:01:32.5]} 17... Nc5 {[%clk 0:01:00.8]} 18. g4
{[%clk 0:01:22.8]} 18... Be4 {[%clk 0:01:00.7]} 19. b3 {[%clk 0:01:21]} 19... b6
{[%clk 0:00:54.6]} 20. Qe3 {[%clk 0:01:20.4]} 20... Qb7 {[%clk 0:00:54.9]} 21.
Ne1 {[%clk 0:00:51]} 21... Bxg2 {[%clk 0:00:53.3]} 22. Nxg2 {[%clk 0:00:52.9]}
22... Rac8 {[%clk 0:00:52.4]} 23. Rfd1 {[%clk 0:00:44.5]} 23... Ne6 {[%clk
0:00:49.4]} 24. Rd3 {[%clk 0:00:40.1]} 24... Rc7 {[%clk 0:00:46.4]} 25. Bg3
{[%clk 0:00:37.4]} 25... Rec8 {[%clk 0:00:47.3]} 26. Qd2 {[%clk 0:00:38.1]}
26... Qa8 {[%clk 0:00:19.1]} 27. Ne3 {[%clk 0:00:38.3]} 27... Nc5 {[%clk
0:00:19.9]} 28. Nd5 {[%clk 0:00:34.6]} 28... Nxd3 {[%clk 0:00:19.1]} 29. Nxc7
{[%clk 0:00:34.7]} 29... Rxc7 {[%clk 0:00:20.2]} 30. Qxd3 {[%clk 0:00:34.1]}
30... e6 {[%clk 0:00:20.4]} 31. Rd1 {[%clk 0:00:33.3]} 31... Bf8 {[%clk
0:00:17.8]} 32. Bf4 {[%clk 0:00:33.2]} 32... Qc6 {[%clk 0:00:16.6]} 33. Qd8
{[%clk 0:00:28.6]} 33... Rc8 {[%clk 0:00:16.8]} 34. Qd3 {[%clk 0:00:26.1]} 34...
Qb7 {[%clk 0:00:10.1]} 35. Bg5 {[%clk 0:00:26]} 35... Rc3 {[%clk 0:00:10.7]} 36.
Qf1 {[%clk 0:00:12.3]} 36... Be7 {[%clk 0:00:07.4]} 37. Bxe7 {[%clk 0:00:09.4]}
37... Qxe7 {[%clk 0:00:09.3]} 38. Rd2 {[%clk 0:00:09.7]} 38... Qc7 {[%clk
0:00:09.9]} 39. Qe2 {[%clk 0:00:10.5]} 39... Kg7 {[%clk 0:00:08.5]} 40. Qe4
{[%clk 0:00:11.2]} 40... Qc6 {[%clk 0:00:08.3]} 41. Qxc6 {[%clk 0:00:10]} 41...
Rxc6 {[%clk 0:00:10.2]} 42. f4 {[%clk 0:00:10.6]} 42... Rc3 {[%clk 0:00:10]} 43.
Kg2 {[%clk 0:00:11.7]} 43... Kf8 {[%clk 0:00:10.8]} 44. g5 {[%clk 0:00:12.6]}
44... Ke7 {[%clk 0:00:11.9]} 45. Kf2 {[%clk 0:00:10.9]} 45... Rxh3 {[%clk
0:00:11.6]} 46. Rd6 {[%clk 0:00:12.3]} 46... Rc3 {[%clk 0:00:12.2]} 47. Rxb6
{[%clk 0:00:11.7]} 47... Rxc2+ {[%clk 0:00:13.4]} 48. Ke1 {[%clk 0:00:13.6]}
48... Rc3 {[%clk 0:00:14.2]} 49. Rb7+ {[%clk 0:00:15.5]} 49... Kf8 {[%clk
0:00:14.8]} 50. Rb8+ {[%clk 0:00:16.5]} 50... Kg7 {[%clk 0:00:15.5]} 51. Rb5
{[%clk 0:00:18.4]} 51... Rxb3 {[%clk 0:00:16.5]} 52. Rxa5 {[%clk 0:00:20.2]}
52... Ra3 {[%clk 0:00:17.5]} 53. Rb5 {[%clk 0:00:22]} 53... h5 {[%clk
0:00:17.9]} 54. Ke2 {[%clk 0:00:23.8]} 54... Rxa4 {[%clk 0:00:18.3]} 55. Kf3
{[%clk 0:00:24.2]} 55... Ra3+ {[%clk 0:00:19]} 56. Kg2 {[%clk 0:00:21.4]} 56...
Rb3 {[%clk 0:00:19.2]} 57. Rb8 {[%clk 0:00:19.2]} 57... Rb2+ {[%clk 0:00:12.8]}
58. Kg3 {[%clk 0:00:19.8]} 58... b3 {[%clk 0:00:12.7]} 59. Kh3 {[%clk
0:00:20.9]} 59... Rb1 {[%clk 0:00:12.6]} 60. Kg3 {[%clk 0:00:22]} 60... b2
{[%clk 0:00:10.9]} 61. Kg2 {[%clk 0:00:22.8]} 61... h4 {[%clk 0:00:12.1]} 62.
Rb4 {[%clk 0:00:22]} 62... h3+ {[%clk 0:00:12.5]} 63. Kh2 {[%clk 0:00:23.1]}
63... Kf8 {[%clk 0:00:14.1]} 64. Rb7 {[%clk 0:00:23.2]} 64... Ke8 {[%clk
0:00:15.3]} 65. Rb3 {[%clk 0:00:23]} 65... Kd7 {[%clk 0:00:16.4]} 66. Rb4 {[%clk
0:00:23.8]} 66... Kc6 {[%clk 0:00:17.2]} 67. Rb3 {[%clk 0:00:25]} 67... Kd5
{[%clk 0:00:17.9]} 68. Rb8 {[%clk 0:00:25.6]} 68... Ke4 {[%clk 0:00:18.2]} 69.
Rb4+ {[%clk 0:00:22.7]} 69... Kf3 {[%clk 0:00:19.1]} 70. Rb7 {[%clk 0:00:22.6]}
70... Kxf4 {[%clk 0:00:19.1]} 71. Rxf7+ {[%clk 0:00:23.1]} 71... Kxe5 {[%clk
0:00:19.7]} 72. Rb7 {[%clk 0:00:20.5]} 72... Kf5 {[%clk 0:00:20.9]} 0-1

[Event "*** MasterClass Titled Tuesday Blitz"]
[Site "Chess.com"]
[Date "2017.11.07"]
[Round "3"]
[White "plouarzel"]
[Black "Sam_ChessMood"]
[Result "0-1"]
[WhiteElo "2457"]
[BlackElo "2631"]
[TimeControl "180+2"]
[EndTime "14:46:59 PST"]
[Termination "Sam_ChessMood won by checkmate"]

1. e4 {[%clk 0:03:01.9]} 1... c5 {[%clk 0:02:58.4]} 2. Nf3 {[%clk 0:03:02.3]}
2... d6 {[%clk 0:02:59.7]} 3. Bb5+ {[%clk 0:03:03]} 3... Nd7 {[%clk 0:03:00.4]}
4. O-O {[%clk 0:03:02.5]} 4... a6 {[%clk 0:03:01.2]} 5. Bd3 {[%clk 0:03:02.8]}
5... Ngf6 {[%clk 0:03:01.4]} 6. Re1 {[%clk 0:03:04]} 6... e6 {[%clk 0:02:59.2]}
7. c3 {[%clk 0:03:04.8]} 7... b5 {[%clk 0:02:53]} 8. Bc2 {[%clk 0:03:04.6]} 8...
c4 {[%clk 0:02:52.8]} 9. b3 {[%clk 0:02:48.1]} 9... Bb7 {[%clk 0:01:59.5]} 10.
Na3 {[%clk 0:02:39.9]} 10... Rc8 {[%clk 0:01:49.5]} 11. bxc4 {[%clk 0:02:30.2]}
11... bxc4 {[%clk 0:01:50.2]} 12. Rb1 {[%clk 0:02:31.7]} 12... Ba8 {[%clk
0:01:49.1]} 13. Qe2 {[%clk 0:02:26.4]} 13... Qc7 {[%clk 0:01:49.5]} 14. Nd4
{[%clk 0:02:03.6]} 14... Be7 {[%clk 0:01:48.3]} 15. d3 {[%clk 0:01:46.3]} 15...
cxd3 {[%clk 0:01:38.9]} 16. Bxd3 {[%clk 0:01:48.2]} 16... Nc5 {[%clk 0:01:33.7]}
17. Bxa6 {[%clk 0:01:32.2]} 17... Nxa6 {[%clk 0:01:34.7]} 18. Qxa6 {[%clk
0:01:34.1]} 18... O-O {[%clk 0:01:35.6]} 19. Nab5 {[%clk 0:01:30.7]} 19... Qd7
{[%clk 0:01:30.8]} 20. f3 {[%clk 0:01:22.8]} 20... Bb7 {[%clk 0:01:20.5]} 21.
Qb6 {[%clk 0:01:03.9]} 21... d5 {[%clk 0:00:58.6]} 22. Na7 {[%clk 0:00:40.7]}
22... Rxc3 {[%clk 0:00:59.2]} 23. Qxb7 {[%clk 0:00:36.4]} 23... Rc7 {[%clk
0:00:58.2]} 24. Qb5 {[%clk 0:00:30.1]} 24... Rxa7 {[%clk 0:00:54.3]} 25. Qxd7
{[%clk 0:00:31.5]} 25... Nxd7 {[%clk 0:00:31.9]} 26. exd5 {[%clk 0:00:32.1]}
26... Bc5 {[%clk 0:00:32.9]} 27. Be3 {[%clk 0:00:33.5]} 27... exd5 {[%clk
0:00:33.4]} 28. Rec1 {[%clk 0:00:33.5]} 28... Ra3 {[%clk 0:00:23.2]} 29. Bf2
{[%clk 0:00:33.8]} 29... Rxa2 {[%clk 0:00:24.5]} 30. Rd1 {[%clk 0:00:32.8]}
30... Nf6 {[%clk 0:00:23.2]} 31. Ra1 {[%clk 0:00:33]} 31... Rfa8 {[%clk
0:00:22.9]} 32. Rxa2 {[%clk 0:00:32.8]} 32... Rxa2 {[%clk 0:00:24]} 33. Ne2
{[%clk 0:00:31.7]} 33... Bxf2+ {[%clk 0:00:21.3]} 34. Kxf2 {[%clk 0:00:33.6]}
34... h5 {[%clk 0:00:20.6]} 35. h4 {[%clk 0:00:32.7]} 35... Kh7 {[%clk
0:00:20.6]} 36. Ke3 {[%clk 0:00:33.4]} 36... Ra3+ {[%clk 0:00:20.6]} 37. Kf2
{[%clk 0:00:34.8]} 37... Ra5 {[%clk 0:00:18.6]} 38. Nf4 {[%clk 0:00:32.8]} 38...
g6 {[%clk 0:00:19.7]} 39. Rd4 {[%clk 0:00:29.9]} 39... Kh6 {[%clk 0:00:19.6]}
40. Kg3 {[%clk 0:00:28.6]} 40... Kg7 {[%clk 0:00:19.6]} 41. Kf2 {[%clk
0:00:29.7]} 41... Kf8 {[%clk 0:00:20.8]} 42. Kg3 {[%clk 0:00:29.9]} 42... Ke7
{[%clk 0:00:22]} 43. Kh3 {[%clk 0:00:24.1]} 43... Kd6 {[%clk 0:00:22.4]} 44. Nd3
{[%clk 0:00:24]} 44... Nd7 {[%clk 0:00:17]} 45. g4 {[%clk 0:00:23.3]} 45...
hxg4+ {[%clk 0:00:16.9]} 46. fxg4 {[%clk 0:00:25.2]} 46... Ra3 {[%clk
0:00:17.7]} 47. Kg2 {[%clk 0:00:22.7]} 47... Nf6 {[%clk 0:00:10.8]} 48. Kf2
{[%clk 0:00:17.9]} 48... Nxg4+ {[%clk 0:00:10.4]} 49. Rxg4 {[%clk 0:00:17.8]}
49... Rxd3 {[%clk 0:00:10.6]} 50. Ke2 {[%clk 0:00:19.3]} 50... Rh3 {[%clk
0:00:10.4]} 51. Kf2 {[%clk 0:00:20.8]} 51... Ke6 {[%clk 0:00:11.5]} 52. Kg2
{[%clk 0:00:22.1]} 52... Ra3 {[%clk 0:00:12.4]} 53. h5 {[%clk 0:00:20.3]} 53...
gxh5 {[%clk 0:00:13]} 54. Rh4 {[%clk 0:00:21.8]} 54... Re3 {[%clk 0:00:09.5]}
55. Rxh5 {[%clk 0:00:22.5]} 55... d4 {[%clk 0:00:09.7]} 56. Kf2 {[%clk
0:00:23.4]} 56... Re5 {[%clk 0:00:09.4]} 57. Rh6+ {[%clk 0:00:24]} 57... Kd5
{[%clk 0:00:07.4]} 58. Rh7 {[%clk 0:00:25.5]} 58... Re7 {[%clk 0:00:07.6]} 59.
Rh5+ {[%clk 0:00:24.3]} 59... Kc4 {[%clk 0:00:08.7]} 60. Kf3 {[%clk 0:00:24.9]}
60... d3 {[%clk 0:00:09.2]} 61. Rh8 {[%clk 0:00:25.7]} 61... Kc3 {[%clk
0:00:10.2]} 62. Rc8+ {[%clk 0:00:27.2]} 62... Kd2 {[%clk 0:00:11.3]} 63. Rd8
{[%clk 0:00:29.1]} 63... Kc2 {[%clk 0:00:11.6]} 64. Rc8+ {[%clk 0:00:28.8]}
64... Kd1 {[%clk 0:00:12.4]} 65. Rd8 {[%clk 0:00:30.5]} 65... d2 {[%clk
0:00:13.5]} 66. Kf2 {[%clk 0:00:32.4]} 66... Rc7 {[%clk 0:00:11.1]} 67. Ra8
{[%clk 0:00:31.7]} 67... Kc1 {[%clk 0:00:08.9]} 68. Ra1+ {[%clk 0:00:29.9]}
68... Kb2 {[%clk 0:00:10.1]} 69. Rh1 {[%clk 0:00:24.5]} 69... Rc1 {[%clk
0:00:10.8]} 70. Rh8 {[%clk 0:00:20]} 70... d1=Q {[%clk 0:00:11]} 71. Rb8+ {[%clk
0:00:20.6]} 71... Ka3 {[%clk 0:00:11.9]} 72. Ra8+ {[%clk 0:00:22.1]} 72... Kb4
{[%clk 0:00:13]} 73. Rb8+ {[%clk 0:00:23.6]} 73... Ka5 {[%clk 0:00:14.3]} 74.
Ra8+ {[%clk 0:00:24.8]} 74... Kb6 {[%clk 0:00:15.6]} 75. Rd8 {[%clk 0:00:26.7]}
75... Qxd8 {[%clk 0:00:15.6]} 76. Kf3 {[%clk 0:00:28.6]} 76... Qd4 {[%clk
0:00:16.1]} 77. Ke2 {[%clk 0:00:29.2]} 77... Rc3 {[%clk 0:00:15.7]} 78. Ke1
{[%clk 0:00:30.1]} 78... Qe3+ {[%clk 0:00:16.2]} 79. Kf1 {[%clk 0:00:30.7]}
79... Qd2 {[%clk 0:00:16.5]} 80. Kg1 {[%clk 0:00:30.7]} 80... Rc1# {[%clk
0:00:17.4]} 0-1